[Event "DFMMLV 2019"]
[Site "Braunfels"]
[Date "2019.06.21"]
[Round "2.35"]
[White "Alsheimer, Lea"]
[Black "Skibbe, Diana"]
[Result "0-1"]
[ECO "A80"]
[WhiteElo "1707"]
[BlackElo "1986"]
[Annotator "NA RC"]
[PlyCount "60"]
[EventDate "2019.06.20"]
[EventType "team-tourn"]
[EventCountry "GER"]
[SourceTitle "playchess.com"]
[Source "ChessBase"]
[SourceQuality "1"]
[WhiteTeam "Bayern 2"]
[BlackTeam "Thueringen"]
[TimeControl "40/5400+30:1800+30"]

1. d4 {[%emt 0:00:00]} f5 {[%emt 0:00:00]} 2. Bg5 {[%emt 0:00:31]} h6 {[%emt 0:00:00]} 3. Bh4 {[%emt 0:03:32]} g5 {[%emt 0:00:09]} 4. Bg3 {[%emt 0:00:04]} Nf6 {[%emt 0:00:36]} 5. Be5 {[%emt 0:00:22]} Bg7 {[%emt 0:00:19]} 6. e3 {[%emt 0:00:22]} d6 {[%emt 0:00:39]} 7. Bxf6 {[%emt 0:00:23]} Bxf6 {[%emt 0:00:16]} 8. Qh5+ {[%emt 0:00:04]} Kf8 {[%emt 0:00:20]} 9. Nc3 {[%emt 0:02:01]} c6 {[%emt 0:00:35]} 10. Bd3 {[%emt 0:01:56]} Bd7 {[%emt 0:08:17]} 11. h3 {[%emt 0:05:53]} Kg7 {[%emt 0:03:49]} 12. Nge2 {[%emt 0:02:54]} e6 {[%emt 0:02:45]} 13. Ng3 {[%emt 0:02:50]} Be8 {[%emt 0:04:42]} 14. Qf3 {[%emt 0:00:08]} h5 {[%emt 0:00:27]} 15. Bxf5 {[%emt 0:05:55]} exf5 {[%emt 0:01:08]} 16. Nxf5+ {[%emt 0:00:08]} Kh7 {[%emt 0:02:40]} 17. Nxd6 {[%emt 0:02:03]} Bg6 {[%emt 0:03:52]} 18. Nce4 {[%emt 0:03:13]} Rf8 {[%emt 0:00:39]} 19. Nxb7 {[%emt 0:03:32]} Qe7 {[%emt 0:02:59]} 20. Nbc5 {[%emt 0:00:04]} Bg7 {[%emt 0:01:18]} 21. Nxg5+ {[%emt 0:02:23]} Qxg5 {[%emt 0:02:31]} 22. Qe2 {[%emt 0:02:03]} Qxg2 {[%emt 0:03:12]} 23. Rf1 {[%emt 0:00:48]} Qxh3 {[%emt 0:00:27]} 24. O-O-O {[%emt 0:00:32]} Nd7 {[%emt 0:01:58]} 25. Rh1 {[%emt 0:00:14]} Qf5 {[%emt 0:00:52]} 26. e4 {[%emt 0:03:41]} Qf4+ {[%emt 0:01:15]} 27. Kb1 {[%emt 0:00:14]} Nxc5 {[%emt 0:00:37]} 28. Rxh5+ {[%emt 0:02:15]} Bxh5 {[%emt 0:02:17]} 29. Qxh5+ {[%emt 0:00:05]} Bh6 {[%emt 0:00:08]} 30. dxc5 {[%emt 0:01:37]} Rad8 {[%emt 0:01:38]} 0-1

[Event "DFMMLV 2019"]
[Site "Braunfels"]
[Date "2019.06.21"]
[Round "2.36"]
[White "Jacke, Corinna"]
[Black "Pavlov, Liliane"]
[Result "1/2-1/2"]
[ECO "B90"]
[WhiteElo "2001"]
[BlackElo "1619"]
[Annotator "NA RC"]
[PlyCount "49"]
[EventDate "2019.06.20"]
[EventType "team-tourn"]
[EventCountry "GER"]
[SourceTitle "playchess.com"]
[Source "ChessBase"]
[SourceQuality "1"]
[WhiteTeam "Thueringen"]
[BlackTeam "Bayern 2"]
[TimeControl "40/5400+30:1800+30"]

1. e4 {[%emt 0:00:00]} c5 {[%emt 0:00:00]} 2. Nf3 {[%emt 0:00:00]} d6 {[%emt 0:00:00]} 3. d4 {[%emt 0:00:00]} cxd4 {[%emt 0:00:04]} 4. Nxd4 {[%emt 0:00:00]} Nf6 {[%emt 0:00:14]} 5. Nc3 {[%emt 0:00:00]} a6 {[%emt 0:00:21]} 6. a4 {[%emt 0:03:05]} e5 {[%emt 0:01:13]} 7. Nde2 {[%emt 0:04:01]} Be7 {[%emt 0:03:32]} 8. g3 {[%emt 0:00:25]} Be6 {[%emt 0:08:26]} 9. Bg2 {[%emt 0:01:01]} Nc6 {[%emt 0:04:03]} 10. O-O {[%emt 0:00:56]} O-O {[%emt 0:00:39]} 11. h3 {[%emt 0:05:22]} Qd7 {[%emt 0:08:40]} 12. Kh2 {[%emt 0:03:59]} Rac8 {[%emt 0:09:18]} 13. Nd5 {[%emt 0:17:38]} Bd8 {[%emt 0:14:48]} 14. c3 {[%emt 0:09:50]} Na5 {[%emt 0:06:18]} 15. b3 {[%emt 0:27:14]} b5 {[%emt 0:08:09]} 16. axb5 {[%emt 0:12:33]} Qxb5 {[%emt 0:02:49]} 17. Nxf6+ {[%emt 0:02:51]} Bxf6 {[%emt 0:00:33]} 18. c4 {[%emt 0:00:07]} Qb6 {[%emt 0:02:53]} 19. Be3 {[%emt 0:00:39]} Qc7 {[%emt 0:00:27]} 20. Qd3 {[%emt 0:00:39]} Rb8 {[%emt 0:01:13]} 21. Rfb1 {[%emt 0:00:20]} Nxb3 {[%emt 0:06:47]} 22. Rxa6 {[%emt 0:06:21]} Qxc4 {[%emt 0:01:48]} 23. Rxd6 {[%emt 0:00:39]} Be7 {[%emt 0:10:46]} 24. Qxc4 {[%emt 0:00:36]} Bxc4 {[%emt 0:00:10]} 25. Rd7 1/2-1/2

[Event "DFMMLV 2019"]
[Site "Braunfels"]
[Date "2019.06.21"]
[Round "2.37"]
[White "Schaefer, Ann-Kathrin"]
[Black "Dietrich, Mareike"]
[Result "0-1"]
[ECO "B23"]
[WhiteElo "1714"]
[BlackElo "1706"]
[Annotator "NA RC"]
[PlyCount "68"]
[EventDate "2019.06.20"]
[EventType "team-tourn"]
[EventCountry "GER"]
[SourceTitle "playchess.com"]
[Source "ChessBase"]
[SourceQuality "1"]
[WhiteTeam "Bayern 2"]
[BlackTeam "Thueringen"]
[TimeControl "40/5400+30:1800+30"]

1. e4 {[%emt 0:00:00]} c5 {[%emt 0:00:00]} 2. Nc3 {[%emt 0:00:00]} a6 {[%emt 0:00:00]} 3. f4 {[%emt 0:00:00]} b5 {[%emt 0:00:00]} 4. Nf3 {[%emt 0:00:04]} Bb7 {[%emt 0:00:00]} 5. d3 {[%emt 0:01:18]} e6 {[%emt 0:00:56]} 6. Be2 {[%emt 0:01:07]} b4 {[%emt 0:04:50]} 7. Nb1 {[%emt 0:02:27]} d5 {[%emt 0:02:17]} 8. Nbd2 {[%emt 0:05:35]} Nf6 {[%emt 0:02:07]} 9. e5 {[%emt 0:03:48]} Ng4 {[%emt 0:06:17]} 10. Nf1 {[%emt 0:05:14]} Nc6 {[%emt 0:01:47]} 11. h3 {[%emt 0:09:30]} Nh6 {[%emt 0:00:46]} 12. g4 {[%emt 0:01:52]} Be7 {[%emt 0:08:53]} 13. Be3 {[%emt 0:13:51]} Rc8 {[%emt 0:04:19]} 14. Ng3 {[%emt 0:05:45]} Ng8 {[%emt 0:06:12]} 15. f5 {[%emt 0:10:34]} d4 {[%emt 0:03:41]} 16. Bf4 {[%emt 0:01:36]} g5 {[%emt 0:01:49]} 17. Bd2 {[%emt 0:03:10]} Nxe5 {[%emt 0:05:10]} 18. Nxe5 {[%emt 0:07:42]} Bxh1 {[%emt 0:00:02]} 19. Nxh1 {[%emt 0:01:14]} Qd5 {[%emt 0:00:55]} 20. Nf3 {[%emt 0:01:09]} exf5 {[%emt 0:00:38]} 21. gxf5 {[%emt 0:06:06]} Qxf5 {[%emt 0:02:25]} 22. Nf2 {[%emt 0:01:38]} h5 {[%emt 0:02:08]} 23. Nh2 {[%emt 0:03:52]} Bd6 {[%emt 0:01:38]} 24. Nf3 {[%emt 0:03:15]} g4 {[%emt 0:03:10]} 25. Ne4 {[%emt 0:02:16]} Be7 {[%emt 0:03:14]} 26. Nfg5 {[%emt 0:02:58]} f6 {[%emt 0:01:31]} 27. hxg4 {[%emt 0:02:44]} hxg4 {[%emt 0:00:01]} 28. Ng3 {[%emt 0:00:07]} Qe5 {[%emt 0:00:59]} 29. N5e4 {[%emt 0:00:26]} f5 {[%emt 0:00:40]} 30. Nxf5 {[%emt 0:02:30]} Rh1+ {[%emt 0:00:39]} 31. Bf1 {[%emt 0:00:10]} Qxf5 {[%emt 0:02:29]} 32. Qe2 {[%emt 0:02:52]} Bh4+ {[%emt 0:03:45]} 33. Nf2+ {[%emt 0:00:57]} Kd7 {[%emt 0:00:09]} 34. O-O-O {[%emt 0:00:39]} Bxf2 {[%emt 0:01:41]} 0-1

[Event "DFMMLV 2019"]
[Site "Braunfels"]
[Date "2019.06.21"]
[Round "2.38"]
[White "Schulz, Theresa Charlotte"]
[Black "Albayrak, Nese Pinar"]
[Result "1-0"]
[ECO "C44"]
[WhiteElo "1603"]
[BlackElo "1530"]
[Annotator "NA RC"]
[PlyCount "49"]
[EventDate "2019.06.20"]
[EventType "team-tourn"]
[EventCountry "GER"]
[SourceTitle "playchess.com"]
[Source "ChessBase"]
[SourceQuality "1"]
[WhiteTeam "Thueringen"]
[BlackTeam "Bayern 2"]
[TimeControl "40/5400+30:1800+30"]

1. e4 {[%emt 0:00:00]} e5 {[%emt 0:00:00]} 2. Nf3 {[%emt 0:00:00]} Nc6 {[%emt 0:00:00]} 3. d4 {[%emt 0:00:00]} exd4 {[%emt 0:00:00]} 4. Bc4 {[%emt 0:00:00]} Nf6 {[%emt 0:01:06]} 5. e5 {[%emt 0:00:05]} d5 {[%emt 0:02:10]} 6. Bb5 {[%emt 0:00:08]} Nd7 {[%emt 0:02:21]} 7. O-O {[%emt 0:01:35]} Bc5 {[%emt 0:04:37]} 8. Bg5 {[%emt 0:02:33]} Be7 {[%emt 0:01:35]} 9. Bxc6 {[%emt 0:09:18]} Bxg5 {[%emt 0:12:19]} 10. Nxd4 {[%emt 0:05:52]} O-O {[%emt 0:01:00]} 11. Bxd5 {[%emt 0:09:10]} Nxe5 {[%emt 0:05:54]} 12. Nc3 {[%emt 0:00:37]} c6 {[%emt 0:04:24]} 13. Bb3 {[%emt 0:01:40]} Bg4 {[%emt 0:19:07]} 14. Nde2 {[%emt 0:05:52]} Qb6 {[%emt 0:09:08]} 15. Na4 {[%emt 0:05:29]} Qa6 {[%emt 0:01:13]} 16. f3 {[%emt 0:03:09]} Rad8 {[%emt 0:01:44]} 17. Qe1 {[%emt 0:00:42]} b5 {[%emt 0:11:58]} 18. Nac3 {[%emt 0:03:41]} Qb6+ {[%emt 0:00:29]} 19. Kh1 {[%emt 0:00:19]} c5 {[%emt 0:13:20]} 20. Ne4 {[%emt 0:15:16]} Bh6 {[%emt 0:01:41]} 21. fxg4 {[%emt 0:02:22]} Nxg4 {[%emt 0:04:07]} 22. Qh4 {[%emt 0:11:44]} Ne3 {[%emt 0:01:36]} 23. Rf6 {[%emt 0:03:38]} Qc7 {[%emt 0:00:55]} 24. Rxh6 {[%emt 0:00:40]} gxh6 {[%emt 0:00:23]} 25. Qxh6 {[%emt 0:00:37]} 1-0

[Event "DFMMLV 2019"]
[Site "Braunfels"]
[Date "2019.06.21"]
[Round "2.39"]
[White "Weber, Leonora"]
[Black "Neumann, Tina"]
[Result "1-0"]
[ECO "B01"]
[WhiteElo "1712"]
[BlackElo "1525"]
[Annotator "NA RC"]
[PlyCount "98"]
[EventDate "2019.06.20"]
[EventType "team-tourn"]
[EventCountry "GER"]
[SourceTitle "playchess.com"]
[Source "ChessBase"]
[SourceQuality "1"]
[WhiteTeam "Bayern 2"]
[BlackTeam "Thueringen"]
[TimeControl "40/5400+30:1800+30"]

1. e4 {[%emt 0:00:00]} d5 {[%emt 0:00:00]} 2. exd5 {[%emt 0:00:00]} Qxd5 {[%emt 0:00:47]} 3. Nc3 {[%emt 0:00:03]} Qa5 {[%emt 0:00:04]} 4. d4 {[%emt 0:01:53]} Nf6 {[%emt 0:00:11]} 5. Nf3 {[%emt 0:08:07]} Bf5 {[%emt 0:00:28]} 6. Bc4 {[%emt 0:10:50]} c6 {[%emt 0:00:37]} 7. O-O {[%emt 0:06:16]} e6 {[%emt 0:03:47]} 8. Re1 {[%emt 0:11:02]} Nbd7 {[%emt 0:03:12]} 9. Ne5 {[%emt 0:20:09]} Nxe5 {[%emt 0:09:26]} 10. Rxe5 {[%emt 0:00:40]} Qc7 {[%emt 0:02:09]} 11. Qe2 {[%emt 0:03:28]} Ng4 {[%emt 0:27:45]} 12. Bf4 {[%emt 0:27:10]} Nxe5 {[%emt 0:00:58]} 13. Bxe5 {[%emt 0:00:01]} Bd6 {[%emt 0:13:45]} 14. g4 {[%emt 0:01:16]} Bxe5 {[%emt 0:08:34]} 15. dxe5 {[%emt 0:01:59]} Bg6 {[%emt 0:01:41]} 16. h4 {[%emt 0:00:06]} h5 {[%emt 0:04:21]} 17. g5 {[%emt 0:01:11]} O-O-O {[%emt 0:01:02]} 18. Rd1 {[%emt 0:00:45]} Rxd1+ {[%emt 0:00:18]} 19. Nxd1 {[%emt 0:00:29]} Rd8 {[%emt 0:00:51]} 20. c3 {[%emt 0:00:29]} Qd7 {[%emt 0:03:54]} 21. Ne3 {[%emt 0:01:30]} b5 {[%emt 0:02:46]} 22. Bb3 {[%emt 0:00:12]} Qd2 {[%emt 0:01:24]} 23. Qf3 {[%emt 0:00:13]} Kc7 {[%emt 0:01:27]} 24. a4 {[%emt 0:00:21]} Qxb2 {[%emt 0:01:44]} 25. Bc2 {[%emt 0:03:33]} Bxc2 {[%emt 0:02:31]} 26. Nxc2 {[%emt 0:00:04]} Qxc2 {[%emt 0:00:55]} 27. Qxf7+ {[%emt 0:00:04]} Rd7 {[%emt 0:00:48]} 28. Qxe6 {[%emt 0:00:02]} Rd1+ {[%emt 0:00:45]} 29. Kg2 {[%emt 0:00:12]} Qe4+ {[%emt 0:00:41]} 30. f3 {[%emt 0:00:28]} Qe2+ {[%emt 0:02:44]} 31. Kg3 {[%emt 0:00:13]} Rg1+ {[%emt 0:00:56]} 32. Kf4 {[%emt 0:00:08]} Qd2+ {[%emt 0:00:16]} 33. Kf5 {[%emt 0:01:31]} Qd7 {[%emt 0:03:33]} 34. Qxd7+ {[%emt 0:01:54]} Kxd7 {[%emt 0:00:00]} 35. Kg6 {[%emt 0:00:09]} bxa4 {[%emt 0:00:25]} 36. f4 {[%emt 0:00:57]} Ke6 {[%emt 0:01:15]} 37. Kxg7 {[%emt 0:00:29]} a3 {[%emt 0:00:53]} 38. Kg6 {[%emt 0:00:26]} a2 {[%emt 0:00:10]} 39. f5+ {[%emt 0:00:04]} Kxe5 {[%emt 0:00:54]} 40. f6 {[%emt 0:00:06]} a1=Q {[%emt 0:00:47]} 41. f7 {[%emt 0:30:53]} Qb1+ {[%emt 0:31:05]} 42. Kg7 {[%emt 0:00:36]} Qb7 {[%emt 0:00:35]} 43. Kg8 {[%emt 0:00:44]} Qxf7+ {[%emt 0:00:00]} 44. Kxf7 {[%emt 0:00:00]} Kf5 {[%emt 0:00:00]} 45. c4 {[%emt 0:00:00]} a5 {[%emt 0:00:00]} 46. c5 {[%emt 0:00:00]} a4 {[%emt 0:00:00]} 47. Ke7 {[%emt 0:00:00]} Rd1 {[%emt 0:00:00]} 48. Kf7 {[%emt 0:00:00]} Rd7+ {[%emt 0:00:00]} 49. Ke8 {[%emt 0:00:00]} Ra7 {[%emt 0:00:00]} 1-0

[Event "DFMMLV 2019"]
[Site "Braunfels"]
[Date "2019.06.21"]
[Round "2.40"]
[White "Meyer, Jessica"]
[Black "Albayrak, Berrak"]
[Result "1-0"]
[ECO "A00"]
[WhiteElo "1344"]
[BlackElo "1491"]
[Annotator "NA RC"]
[PlyCount "63"]
[EventDate "2019.06.20"]
[EventType "team-tourn"]
[EventCountry "GER"]
[SourceTitle "playchess.com"]
[Source "ChessBase"]
[SourceQuality "1"]
[WhiteTeam "Thueringen"]
[BlackTeam "Bayern 2"]
[TimeControl "40/5400+30:1800+30"]

1. a3 {[%emt 0:00:00]} Nf6 {[%emt 0:00:36]} 2. Nf3 {[%emt 0:00:32]} d5 {[%emt 0:01:13]} 3. d4 {[%emt 0:01:28]} e6 {[%emt 0:01:42]} 4. b4 {[%emt 0:02:55]} b6 {[%emt 0:05:49]} 5. e3 {[%emt 0:04:49]} c5 {[%emt 0:03:35]} 6. bxc5 {[%emt 0:13:05]} bxc5 {[%emt 0:00:40]} 7. c4 {[%emt 0:04:52]} Nc6 {[%emt 0:20:34]} 8. cxd5 {[%emt 0:11:32]} Nxd5 {[%emt 0:00:38]} 9. Bb2 {[%emt 0:10:22]} Rb8 {[%emt 0:09:20]} 10. Qc2 {[%emt 0:09:30]} Qb6 {[%emt 0:04:11]} 11. Bc3 {[%emt 0:04:12]} Bd7 {[%emt 0:11:18]} 12. Bd3 {[%emt 0:02:40]} Qb3 {[%emt 0:05:05]} 13. Qxb3 {[%emt 0:13:42]} Rxb3 {[%emt 0:00:06]} 14. Kd2 {[%emt 0:01:02]} Nxc3 {[%emt 0:02:01]} 15. Nxc3 {[%emt 0:00:09]} cxd4 {[%emt 0:01:25]} 16. Nxd4 {[%emt 0:01:15]} Nxd4 {[%emt 0:04:16]} 17. exd4 {[%emt 0:00:05]} Bxa3 {[%emt 0:05:54]} 18. Bc2 {[%emt 0:01:17]} Rxc3 {[%emt 0:02:53]} 19. Kxc3 {[%emt 0:02:06]} Bd6 {[%emt 0:00:38]} 20. Rxa7 {[%emt 0:01:13]} Ke7 {[%emt 0:01:19]} 21. Rb1 {[%emt 0:01:48]} Rc8+ {[%emt 0:01:45]} 22. Kd3 {[%emt 0:00:39]} Rd8 {[%emt 0:05:49]} 23. Rbb7 {[%emt 0:00:40]} Ke8 {[%emt 0:00:53]} 24. Ba4 {[%emt 0:01:24]} Bxa4 {[%emt 0:00:56]} 25. Rxa4 {[%emt 0:00:10]} Bc5 {[%emt 0:02:43]} 26. Rc4 {[%emt 0:03:30]} Bd6 {[%emt 0:00:31]} 27. Ra4 {[%emt 0:01:42]} Bc5 {[%emt 0:01:30]} 28. Ke4 {[%emt 0:00:29]} Bd6 {[%emt 0:01:34]} 29. Raa7 {[%emt 0:01:56]} f5+ {[%emt 0:00:29]} 30. Kf3 {[%emt 0:01:42]} Bf8 {[%emt 0:00:25]} 31. Ra6 {[%emt 0:00:48]} Bd6 {[%emt 0:00:44]} 32. Rxg7 {[%emt 0:00:46]} 1-0

[Event "DFMMLV 2019"]
[Site "Braunfels"]
[Date "2019.06.21"]
[Round "2.41"]
[White "Zschischang, Marine"]
[Black "Froehlich, Franziska"]
[Result "0-1"]
[ECO "D31"]
[WhiteElo "2060"]
[BlackElo "1820"]
[Annotator "NA RC"]
[PlyCount "78"]
[EventDate "2019.06.20"]
[EventType "team-tourn"]
[EventCountry "GER"]
[SourceTitle "playchess.com"]
[Source "ChessBase"]
[SourceQuality "1"]
[WhiteTeam "Niedersachsen Bremen"]
[BlackTeam "Wuerttemberg 2"]
[TimeControl "40/5400+30:1800+30"]

1. d4 {[%emt 0:00:00]} d5 {[%emt 0:00:00]} 2. c4 {[%emt 0:00:00]} e6 {[%emt 0:00:00]} 3. Nc3 {[%emt 0:00:00]} c6 {[%emt 0:00:00]} 4. cxd5 {[%emt 0:00:49]} exd5 {[%emt 0:00:00]} 5. Qc2 {[%emt 0:00:20]} g6 {[%emt 0:00:00]} 6. Nf3 {[%emt 0:00:44]} Bf5 {[%emt 0:04:47]} 7. Qb3 {[%emt 0:00:55]} Qb6 {[%emt 0:00:11]} 8. Bf4 {[%emt 0:01:37]} Nd7 {[%emt 0:04:26]} 9. e3 {[%emt 0:03:25]} Ngf6 {[%emt 0:05:43]} 10. Qxb6 {[%emt 0:04:28]} axb6 {[%emt 0:00:58]} 11. Nd2 {[%emt 0:05:02]} Be7 {[%emt 0:06:44]} 12. f3 {[%emt 0:01:52]} O-O {[%emt 0:03:18]} 13. g4 {[%emt 0:02:19]} Be6 {[%emt 0:01:37]} 14. Bd3 {[%emt 0:02:48]} b5 {[%emt 0:08:02]} 15. Kf2 {[%emt 0:06:35]} b4 {[%emt 0:03:30]} 16. Ne2 {[%emt 0:02:59]} Rfc8 {[%emt 0:04:12]} 17. Ng3 {[%emt 0:08:40]} b6 {[%emt 0:03:07]} 18. h4 {[%emt 0:10:40]} c5 {[%emt 0:04:15]} 19. h5 {[%emt 0:07:07]} c4 {[%emt 0:00:56]} 20. Bc2 {[%emt 0:00:56]} c3 {[%emt 0:03:27]} 21. bxc3 {[%emt 0:01:15]} bxc3 {[%emt 0:03:24]} 22. Nb1 {[%emt 0:07:04]} b5 {[%emt 0:02:35]} 23. hxg6 {[%emt 0:02:50]} fxg6 {[%emt 0:02:36]} 24. Ne2 {[%emt 0:01:26]} b4 {[%emt 0:01:42]} 25. Nc1 {[%emt 0:11:22]} Nb6 {[%emt 0:03:51]} 26. Nd3 {[%emt 0:04:27]} Nc4 {[%emt 0:05:06]} 27. Bg3 {[%emt 0:05:41]} Bd7 {[%emt 0:04:01]} 28. Bh4 {[%emt 0:01:05]} Rcb8 {[%emt 0:02:15]} 29. Bxf6 {[%emt 0:03:48]} Bxf6 {[%emt 0:00:10]} 30. Nc5 {[%emt 0:00:03]} Bc6 {[%emt 0:03:45]} 31. Nb3 {[%emt 0:01:57]} Re8 {[%emt 0:03:22]} 32. Re1 {[%emt 0:00:20]} Bh4+ {[%emt 0:00:15]} 33. Kf1 {[%emt 0:00:45]} Bxe1 {[%emt 0:00:08]} 34. Kxe1 {[%emt 0:00:27]} Nxe3 {[%emt 0:01:30]} 35. Bd3 {[%emt 0:00:25]} Nc2+ {[%emt 0:00:38]} 36. Kd1 {[%emt 0:00:12]} Nxa1 {[%emt 0:00:21]} 37. Nxa1 {[%emt 0:00:15]} Rxa2 {[%emt 0:00:25]} 38. Nc2 {[%emt 0:00:20]} Ba4 {[%emt 0:02:28]} 39. Kc1 {[%emt 0:01:10]} Bxc2 {[%emt 0:00:24]} 0-1

[Event "DFMMLV 2019"]
[Site "Braunfels"]
[Date "2019.06.21"]
[Round "2.42"]
[White "Yi, Wendy"]
[Black "Moenster, Madita"]
[Result "0-1"]
[ECO "B92"]
[WhiteElo "1820"]
[BlackElo "1994"]
[Annotator "NA RC"]
[PlyCount "100"]
[EventDate "2019.06.20"]
[EventType "team-tourn"]
[EventCountry "GER"]
[SourceTitle "playchess.com"]
[Source "ChessBase"]
[SourceQuality "1"]
[WhiteTeam "Wuerttemberg 2"]
[BlackTeam "Niedersachsen Bremen"]
[TimeControl "40/5400+30:1800+30"]

1. e4 {[%emt 0:00:00]} c5 {[%emt 0:00:00]} 2. Nf3 {[%emt 0:00:00]} d6 {[%emt 0:00:00]} 3. d4 {[%emt 0:00:02]} cxd4 {[%emt 0:00:00]} 4. Nxd4 {[%emt 0:00:09]} Nf6 {[%emt 0:00:02]} 5. Nc3 {[%emt 0:02:11]} a6 {[%emt 0:00:13]} 6. Be2 {[%emt 0:02:21]} e5 {[%emt 0:02:38]} 7. Nb3 {[%emt 0:05:20]} Be7 {[%emt 0:00:33]} 8. O-O {[%emt 0:01:17]} O-O {[%emt 0:00:23]} 9. Be3 {[%emt 0:05:08]} Be6 {[%emt 0:01:58]} 10. Nd2 {[%emt 0:10:00] B92: Sicilian Najdorf: 6 Be2} (10. Qd2 Nbd7 11. a4 Nb6 12. a5 Nc4 13. Bxc4 Bxc4 14. Rfd1 Rc8 15. Bb6 Qe8 16. Nc1 d5 17. exd5 Bb4 18. d6 Qd7 19. Nd3 Bxd6 20. Nxe5 Bxe5 21. Qxd7 Nxd7 22. Rxd7 Bxc3 23. bxc3 {½-½ (30) Salgado Lopez,I (2624)-Cheparinov,I (2711) Germany 2019}) 10... d5 {[%emt 0:11:58]} 11. exd5 {[%emt 0:02:10]} Bxd5 $146 {[%emt 0:05:45]} ({Predecessor:} 11... Nxd5 12. Nxd5 Bxd5 13. Nc4 Bxc4 14. Bxc4 Nc6 15. Qg4 Qc7 16. Bb3 Rad8 {½-½ (33) Rocca,J (1613)-Monzon,S (1640) Montevideo 2018}) 12. Nc4 {[%emt 0:02:36]} Bxc4 {[%emt 0:04:26]} 13. Bxc4 {[%emt 0:00:48]} Qc7 {[%emt 0:02:15]} 14. Qe2 {[%emt 0:02:37]} Nc6 {[%emt 0:01:02]} 15. Rad1 {[%emt 0:03:09]} Rad8 {[%emt 0:03:05]} 16. a3 {[%emt 0:03:38]} Nd4 {[%emt 0:06:35]} 17. Bxd4 {[%emt 0:05:54]} exd4 {[%emt 0:00:36]} 18. Na2 {[%emt 0:01:19]} Rfe8 {[%emt 0:01:46]} 19. Bd3 {[%emt 0:13:29]} Bd6 {[%emt 0:05:19]} 20. Qf3 {[%emt 0:02:23]} Bxh2+ {[%emt 0:00:39]} 21. Kh1 {[%emt 0:00:45]} Be5 {[%emt 0:03:58]} 22. g3 {[%emt 0:03:57]} Qb6 {[%emt 0:10:48]} 23. b3 {[%emt 0:02:15]} Nd7 {[%emt 0:08:44]} 24. Kg2 {[%emt 0:06:29]} g6 {[%emt 0:03:17]} 25. Bc4 {[%emt 0:03:02]} Bf6 {[%emt 0:01:56]} 26. Nb4 {[%emt 0:08:51]} Ne5 {[%emt 0:02:22]} 27. Nd5 {[%emt 0:01:02]} Nxf3 {[%emt 0:01:04]} 28. Nxb6 {[%emt 0:00:11]} Ne5 {[%emt 0:01:01]} 29. Be2 {[%emt 0:00:59]} Bg7 {[%emt 0:04:34]} 30. Nc4 {[%emt 0:00:52]} Nd7 {[%emt 0:00:34]} 31. Rfe1 {[%emt 0:02:32]} Nc5 {[%emt 0:03:06]} 32. b4 {[%emt 0:04:47]} Na4 {[%emt 0:01:34]} 33. Bf3 {[%emt 0:01:20]} b5 {[%emt 0:03:10]} 34. Na5 {[%emt 0:00:43]} Nb2 {[%emt 0:05:55]} 35. Rxe8+ {[%emt 0:01:03]} Rxe8 {[%emt 0:00:08]} 36. Rd2 {[%emt 0:00:12]} Nc4 {[%emt 0:05:54]} 37. Nxc4 {[%emt 0:00:24]} bxc4 {[%emt 0:00:03]} 38. Kf1 {[%emt 0:01:23]} Rd8 {[%emt 0:00:40]} 39. Be2 {[%emt 0:00:16]} Rc8 {[%emt 0:00:38]} 40. Bf3 {[%emt 0:01:42]} Rc7 {[%emt 0:00:30]} 41. Bd5 {[%emt 0:11:13]} Kf8 {[%emt 0:02:04]} 42. Re2 {[%emt 0:03:42]} Bh6 {[%emt 0:06:01]} 43. f4 {[%emt 0:04:13]} Bg7 {[%emt 0:10:29]} 44. a4 {[%emt 0:03:41]} f5 {[%emt 0:06:53]} 45. b5 {[%emt 0:02:13]} axb5 {[%emt 0:00:20]} 46. axb5 {[%emt 0:00:06]} d3 {[%emt 0:00:58]} 47. cxd3 {[%emt 0:01:16]} cxd3 {[%emt 0:00:07]} 48. Rd2 {[%emt 0:01:03]} (48. Re1 $17 {was worth a try.} Rc5 {[%mdl 64] Double Attack} 49. Bc6) 48... Rc1+ {[%emt 0:00:20]} 49. Kf2 {[%emt 0:01:20]} Bd4+ {[%emt 0:00:13]} 50. Kf3 {[%emt 0:00:49]} Rc2 $19 {[%emt 0:00:44]} 0-1

[Event "DFMMLV 2019"]
[Site "Braunfels"]
[Date "2019.06.21"]
[Round "2.43"]
[White "Aden, Dagmar"]
[Black "Lederer, Leia"]
[Result "1/2-1/2"]
[ECO "C24"]
[WhiteElo "1855"]
[BlackElo "1728"]
[Annotator "NA RC"]
[PlyCount "72"]
[EventDate "2019.06.20"]
[EventType "team-tourn"]
[EventCountry "GER"]
[SourceTitle "playchess.com"]
[Source "ChessBase"]
[SourceQuality "1"]
[WhiteTeam "Niedersachsen Bremen"]
[BlackTeam "Wuerttemberg 2"]
[TimeControl "40/5400+30:1800+30"]

1. e4 {[%emt 0:00:00]} e5 {[%emt 0:00:00]} 2. Bc4 {[%emt 0:00:00]} Nf6 {[%emt 0:00:00]} 3. d4 {[%emt 0:00:09]} Nc6 {[%emt 0:06:10]} 4. d5 {[%emt 0:01:29]} Ne7 {[%emt 0:02:21]} 5. Nc3 {[%emt 0:05:15]} Ng6 {[%emt 0:01:25]} 6. a3 {[%emt 0:05:38]} a6 {[%emt 0:04:48]} 7. Be3 {[%emt 0:10:49]} b5 {[%emt 0:09:49]} 8. Bd3 {[%emt 0:00:18]} Nh4 {[%emt 0:00:36]} 9. Kf1 {[%emt 0:05:29]} Be7 {[%emt 0:03:48]} 10. g3 {[%emt 0:02:54]} Ng6 {[%emt 0:03:21]} 11. h4 {[%emt 0:05:58]} h5 {[%emt 0:05:09]} 12. Be2 {[%emt 0:02:48]} d6 {[%emt 0:09:22]} 13. Bg5 {[%emt 0:10:45]} Ng4 {[%emt 0:03:46]} 14. Nh3 {[%emt 0:03:29]} Bxg5 {[%emt 0:01:20]} 15. Nxg5 {[%emt 0:00:22]} O-O {[%emt 0:05:35]} 16. Bxg4 {[%emt 0:04:00]} hxg4 {[%emt 0:01:32]} 17. Qd2 {[%emt 0:04:52]} Qf6 {[%emt 0:04:52]} 18. Ne2 {[%emt 0:06:31]} Ne7 {[%emt 0:03:05]} 19. Kg2 {[%emt 0:11:59]} Qg6 {[%emt 0:09:13]} 20. h5 {[%emt 0:00:30]} Qh6 {[%emt 0:01:33]} 21. Rad1 {[%emt 0:02:26]} f5 {[%emt 0:06:51]} 22. Ne6 {[%emt 0:02:48]} Bxe6 {[%emt 0:03:54]} 23. Qxh6 {[%emt 0:01:45]} gxh6 {[%emt 0:00:04]} 24. dxe6 {[%emt 0:00:17]} fxe4 {[%emt 0:01:14]} 25. Nc3 {[%emt 0:03:02]} Rf6 {[%emt 0:00:34]} 26. Nxe4 {[%emt 0:00:43]} Rxe6 {[%emt 0:00:09]} 27. Rh4 {[%emt 0:00:25]} Rf8 {[%emt 0:01:07]} 28. Rxg4+ {[%emt 0:00:11]} Kh7 {[%emt 0:00:07]} 29. Rd3 {[%emt 0:03:02]} d5 {[%emt 0:00:33]} 30. Nc5 {[%emt 0:00:47]} Ref6 {[%emt 0:00:39]} 31. Rd2 Rd6 32. Re2 {[%emt 0:02:22]} e4 {[%emt 0:02:42]} 33. Nd3 {[%emt 0:00:21]} Nf5 {[%emt 0:01:53]} 34. Nf4 {[%emt 0:00:14]} c6 {[%emt 0:01:16]} 35. c3 {[%emt 0:00:54]} Re8 {[%emt 0:03:26]} 36. Ng6 {[%emt 0:01:17]} Ng7 1/2-1/2